[Event "Titled Tuesday Blitz October 5 2021"]
[White "Silvestre, Christian"]
[Black "Tarasova, Viktoriya"]
[WhiteFideId "30956269"]
[BlackFideId "4175840"]
[WhiteElo "2500"]
[BlackElo "2182"]
[Result "1/2-1/2"]
[Round "08"]
[TimeControl "180+1"]
[Date "2021.10.05"]
[WhiteClock "0:00:06"]
[BlackClock "0:00:10"]

1. Nf3 {[%clk 0:03:00]}  Nf6 {[%clk 0:02:59]} 2. b3 {[%clk 0:03:00]}  d5 {[%clk 0:02:59]} 3. Bb2 {[%clk 0:03:01]}  e6 {[%clk 0:02:58]} 4. c4 {[%clk 0:03:01]}  Bd6 {[%clk 0:02:58]} 5. g3 {[%clk 0:02:59]}  O-O {[%clk 0:02:59]} 6. Bg2 {[%clk 0:02:59]}  b6 {[%clk 0:02:59]} 7. cxd5 {[%clk 0:02:58]}  exd5 {[%clk 0:02:58]} 8. O-O {[%clk 0:02:58]}  Bb7 {[%clk 0:02:58]} 9. a3 {[%clk 0:02:57]}  Nbd7 {[%clk 0:02:59]} 10. d3 {[%clk 0:02:57]}  c5 {[%clk 0:02:57]} 11. Nbd2 {[%clk 0:02:56]}  Re8 {[%clk 0:02:58]} 12. e3 {[%clk 0:02:54]}  Rc8 {[%clk 0:02:58]} 13. Ra2 {[%clk 0:02:52]}  Qe7 {[%clk 0:02:57]} 14. Qa1 {[%clk 0:02:50]}  Ne5 {[%clk 0:02:54]} 15. Nxe5 {[%clk 0:02:48]}  Bxe5 {[%clk 0:02:54]} 16. Bxe5 {[%clk 0:02:44]}  Qxe5 {[%clk 0:02:54]} 17. Qxe5 {[%clk 0:02:44]}  Rxe5 {[%clk 0:02:54]} 18. b4 {[%clk 0:02:45]}  Ba6 {[%clk 0:02:36]} 19. Rd1 {[%clk 0:02:19]}  Bxd3 {[%clk 0:01:53]} 20. Nf3 {[%clk 0:02:14]}  Bc4 {[%clk 0:01:52]} 21. Rb2 {[%clk 0:02:01]}  Re7 {[%clk 0:01:50]} 22. bxc5 {[%clk 0:01:56]}  bxc5 {[%clk 0:01:45]} 23. Nd2 {[%clk 0:01:52]}  Ba6 {[%clk 0:01:44]} 24. Nb3 {[%clk 0:01:48]}  Rb7 {[%clk 0:01:24]} 25. Rbb1 {[%clk 0:01:28]}  Rcb8 {[%clk 0:01:21]} 26. Nd2 {[%clk 0:01:21]}  Rxb1 {[%clk 0:01:18]} 27. Nxb1 {[%clk 0:01:22]}  Be2 {[%clk 0:01:05]} 28. Rc1 {[%clk 0:01:17]}  h6 {[%clk 0:01:00]} 29. Nc3 {[%clk 0:01:01]}  Bc4 {[%clk 0:01:00]} 30. Na4 {[%clk 0:00:59]}  Rb3 {[%clk 0:00:59]} 31. Ra1 {[%clk 0:00:51]}  Nd7 {[%clk 0:00:56]} 32. Bh3 {[%clk 0:00:49]}  Ne5 {[%clk 0:00:39]} 33. Nxc5 {[%clk 0:00:47]}  Rb2 {[%clk 0:00:37]} 34. Bg2 {[%clk 0:00:41]}  Ng4 {[%clk 0:00:34]} 35. Na4 {[%clk 0:00:22]}  Rc2 {[%clk 0:00:32]} 36. e4 {[%clk 0:00:21]}  d4 {[%clk 0:00:23]} 37. e5 {[%clk 0:00:20]}  Nxf2 {[%clk 0:00:21]} 38. Nc5 {[%clk 0:00:15]}  d3 {[%clk 0:00:20]} 39. Ne4 {[%clk 0:00:13]}  Nxe4 {[%clk 0:00:18]} 40. Bxe4 {[%clk 0:00:13]}  Re2 {[%clk 0:00:19]} 41. Bf3 {[%clk 0:00:09]}  Rxe5 {[%clk 0:00:18]} 42. Kf2 {[%clk 0:00:10]}  Rb5 {[%clk 0:00:17]} 43. Rc1 {[%clk 0:00:10]}  Rb2+ {[%clk 0:00:16]} 44. Ke3 {[%clk 0:00:10]}  Ba6 {[%clk 0:00:16]} 45. Rc7 {[%clk 0:00:10]}  d2 {[%clk 0:00:13]} 46. Rxa7 {[%clk 0:00:09]}  Bf1 {[%clk 0:00:13]} 47. Rd7 {[%clk 0:00:05]}  Rb3+ {[%clk 0:00:12]} 48. Kf2 {[%clk 0:00:04]}  Bc4 {[%clk 0:00:11]} 49. Rxd2 {[%clk 0:00:03]}  Rxa3 {[%clk 0:00:11]} 50. Kg2 {[%clk 0:00:03]}  Be6 {[%clk 0:00:10]} 51. Rf2 {[%clk 0:00:04]}  Kh7 {[%clk 0:00:10]} 52. Rf1 {[%clk 0:00:05]}  g6 {[%clk 0:00:10]} 53. Rf2 {[%clk 0:00:06]}  Kg7 {[%clk 0:00:09]} 54. Re2 {[%clk 0:00:06]}  Rb3 {[%clk 0:00:09]} 55. Rf2 {[%clk 0:00:06]}  Rc3 {[%clk 0:00:09]} 56. Rf1 {[%clk 0:00:06]}  Rd3 {[%clk 0:00:10]} 57. Rf2 {[%clk 0:00:07]}  Re3 {[%clk 0:00:10]} 58. Rf1 {[%clk 0:00:07]}  Rc3 {[%clk 0:00:10]} 59. Rf2 {[%clk 0:00:08]}  h5 {[%clk 0:00:10]} 60. Re2 {[%clk 0:00:08]}  Kh6 {[%clk 0:00:10]} 61. Rf2 {[%clk 0:00:08]}  Re3 {[%clk 0:00:10]} 62. Re2 {[%clk 0:00:08]}  Rb3 {[%clk 0:00:11]} 63. Rf2 {[%clk 0:00:08]}  g5 {[%clk 0:00:11]} 64. Rf1 {[%clk 0:00:08]}  g4 {[%clk 0:00:11]} 65. Be4 {[%clk 0:00:08]}  Rb2+ {[%clk 0:00:11]} 66. Rf2 {[%clk 0:00:07]}  Rb4 {[%clk 0:00:10]} 67. Bd3 {[%clk 0:00:06]}  Kg5 {[%clk 0:00:09]} 68. Kg1 {[%clk 0:00:04]}  Rd4 {[%clk 0:00:09]} 69. Bf1 {[%clk 0:00:04]}  f5 {[%clk 0:00:09]} 70. Bg2 {[%clk 0:00:05]}  f4 {[%clk 0:00:09]} 71. gxf4+ {[%clk 0:00:06]}  Rxf4 {[%clk 0:00:09]} 72. Rxf4 {[%clk 0:00:06]}  Kxf4 {[%clk 0:00:09]} 73. Kf2 {[%clk 0:00:07]}  h4 {[%clk 0:00:10]} 74. Bf1 {[%clk 0:00:07]}  g3+ {[%clk 0:00:10]} 75. hxg3+ {[%clk 0:00:07]}  hxg3+ {[%clk 0:00:10]} 76. Kg1 {[%clk 0:00:08]}  Bd5 {[%clk 0:00:10]} 77. Bg2 {[%clk 0:00:09]}  Bxg2 {[%clk 0:00:09]} 78. Kxg2 {[%clk 0:00:10]}  Kg4 {[%clk 0:00:09]} 79. Kg1 {[%clk 0:00:10]}  Kf3 {[%clk 0:00:09]} 80. Kf1 {[%clk 0:00:10]}  g2+ {[%clk 0:00:10]} 81. Kg1 {[%clk 0:00:06]}  Kg3 {[%clk 0:00:10]} 1/2-1/2


[Site "https://www.chess.com"]

[Event "Titled Tuesday Blitz October 5 2021"]
[White "Sokolin, Leonid"]
[Black "Rosenberg, Evan S"]
[WhiteFideId "2009161"]
[BlackFideId "2019299"]
[WhiteElo "2394"]
[BlackElo "2273"]
[Result "1-0"]
[Round "08"]
[TimeControl "180+1"]
[Date "2021.10.05"]
[WhiteClock "0:00:05"]
[BlackClock "0:00:03"]

1. e4 {[%clk 0:03:00]}  c6 {[%clk 0:02:54]} 2. d4 {[%clk 0:03:00]}  d5 {[%clk 0:02:54]} 3. exd5 {[%clk 0:02:59]}  cxd5 {[%clk 0:02:55]} 4. Bd3 {[%clk 0:02:59]}  Nc6 {[%clk 0:02:54]} 5. c3 {[%clk 0:02:59]}  Qc7 {[%clk 0:02:54]} 6. Ne2 {[%clk 0:02:58]}  Bg4 {[%clk 0:02:54]} 7. O-O {[%clk 0:02:58]}  Nf6 {[%clk 0:02:36]} 8. f3 {[%clk 0:02:37]}  Bd7 {[%clk 0:02:36]} 9. Bf4 {[%clk 0:02:31]}  e5 {[%clk 0:02:36]} 10. dxe5 {[%clk 0:02:11]}  Nxe5 {[%clk 0:02:36]} 11. Nd4 {[%clk 0:02:10]}  Bd6 {[%clk 0:02:25]} 12. Nf5 {[%clk 0:01:49]}  Bxf5 {[%clk 0:01:54]} 13. Bxf5 {[%clk 0:01:47]}  O-O {[%clk 0:01:44]} 14. Kh1 {[%clk 0:01:33]}  Nc4 {[%clk 0:01:35]} 15. Bg5 {[%clk 0:01:23]}  Bxh2 {[%clk 0:01:07]} 16. b3 {[%clk 0:01:20]}  Nh5 {[%clk 0:00:56]} 17. bxc4 {[%clk 0:01:05]}  Ng3+ {[%clk 0:00:56]} 18. Kxh2 {[%clk 0:01:05]}  Nxf1+ {[%clk 0:00:53]} 19. Kg1 {[%clk 0:01:00]}  Ng3 {[%clk 0:00:46]} 20. Qxd5 {[%clk 0:00:53]}  Nxf5 {[%clk 0:00:36]} 21. Qxf5 {[%clk 0:00:52]}  Qxc4 {[%clk 0:00:36]} 22. Nd2 {[%clk 0:00:50]}  Qxc3 {[%clk 0:00:36]} 23. Rb1 {[%clk 0:00:46]}  b6 {[%clk 0:00:31]} 24. Kh2 {[%clk 0:00:39]}  Rac8 {[%clk 0:00:29]} 25. Ne4 {[%clk 0:00:37]}  Qc2 {[%clk 0:00:27]} 26. Rb5 {[%clk 0:00:36]}  h6 {[%clk 0:00:25]} 27. Bf4 {[%clk 0:00:22]}  Qxa2 {[%clk 0:00:21]} 28. Nf6+ {[%clk 0:00:10]}  gxf6 {[%clk 0:00:20]} 29. Bxh6 {[%clk 0:00:08]}  Qc2 {[%clk 0:00:17]} 30. Qxf6 {[%clk 0:00:08]}  Qg6 {[%clk 0:00:17]} 31. Rg5 {[%clk 0:00:07]}  Kh7 {[%clk 0:00:05]} 32. Rxg6 {[%clk 0:00:07]}  Rg8 {[%clk 0:00:03]} 33. Qxf7+ {[%clk 0:00:06]}  Rg7 {[%clk 0:00:03]} 34. Qxg7# {[%clk 0:00:05]} 1-0


[Site "https://www.chess.com"]

[Event "Titled Tuesday Blitz October 5 2021"]
[White "Stojanovski, Sandi"]
[Black "Tologon tegin, Semetei"]
[WhiteFideId "1403249"]
[BlackFideId "13800574"]
[WhiteElo "2290"]
[BlackElo "2224"]
[Result "0-1"]
[Round "08"]
[TimeControl "180+1"]
[Date "2021.10.05"]
[WhiteClock "0:00:02"]
[BlackClock "0:00:26"]

1. c4 {[%clk 0:03:00]}  e5 {[%clk 0:02:59]} 2. Nf3 {[%clk 0:02:59]}  d6 {[%clk 0:02:54]} 3. Nc3 {[%clk 0:02:57]}  f5 {[%clk 0:02:54]} 4. e4 {[%clk 0:02:46]}  Nf6 {[%clk 0:02:52]} 5. d4 {[%clk 0:02:43]}  exd4 {[%clk 0:02:47]} 6. Nxd4 {[%clk 0:02:33]}  fxe4 {[%clk 0:02:46]} 7. Bg5 {[%clk 0:02:30]}  Be7 {[%clk 0:02:45]} 8. Bxf6 {[%clk 0:01:59]}  Bxf6 {[%clk 0:02:46]} 9. Qh5+ {[%clk 0:01:50]}  g6 {[%clk 0:02:42]} 10. Qd5 {[%clk 0:01:50]}  Qe7 {[%clk 0:02:28]} 11. O-O-O {[%clk 0:01:40]}  c6 {[%clk 0:01:16]} 12. Qxe4 {[%clk 0:01:34]}  O-O {[%clk 0:01:16]} 13. Qxe7 {[%clk 0:01:24]}  Bxe7 {[%clk 0:01:16]} 14. Nf3 {[%clk 0:01:25]}  Nd7 {[%clk 0:01:15]} 15. Ne4 {[%clk 0:01:20]}  Ne5 {[%clk 0:01:10]} 16. Be2 {[%clk 0:00:58]}  Bg4 {[%clk 0:00:59]} 17. Nxd6 {[%clk 0:00:49]}  Nxf3 {[%clk 0:00:52]} 18. Bxf3 {[%clk 0:00:46]}  Bxf3 {[%clk 0:00:52]} 19. gxf3 {[%clk 0:00:47]}  Rxf3 {[%clk 0:00:46]} 20. Rhe1 {[%clk 0:00:27]}  Bg5+ {[%clk 0:00:45]} 21. Kb1 {[%clk 0:00:27]}  Rxf2 {[%clk 0:00:45]} 22. Ne4 {[%clk 0:00:23]}  Rg2 {[%clk 0:00:42]} 23. Nxg5 {[%clk 0:00:22]}  Rxg5 {[%clk 0:00:43]} 24. Re7 {[%clk 0:00:19]}  Rb8 {[%clk 0:00:40]} 25. Rdd7 {[%clk 0:00:17]}  Rh5 {[%clk 0:00:40]} 26. Rg7+ {[%clk 0:00:08]}  Kh8 {[%clk 0:00:39]} 27. b4 {[%clk 0:00:05]}  Rxh2 {[%clk 0:00:39]} 28. c5 {[%clk 0:00:03]}  a5 {[%clk 0:00:27]} 29. bxa5 {[%clk 0:00:02]}  Ra8 {[%clk 0:00:26]} 0-1


[Site "https://www.chess.com"]

[Event "Titled Tuesday Blitz October 5 2021"]
[White "Stribuk, Artiom"]
[Black "Bilan, Danila"]
[WhiteFideId "13515659"]
[BlackFideId "24161918"]
[WhiteElo "2224"]
[BlackElo "2164"]
[Result "1/2-1/2"]
[Round "08"]
[TimeControl "180+1"]
[Date "2021.10.05"]
[WhiteClock "0:00:07"]
[BlackClock "0:00:07"]

1. d4 {[%clk 0:03:00]}  d5 {[%clk 0:02:59]} 2. c4 {[%clk 0:03:00]}  c6 {[%clk 0:02:59]} 3. Nf3 {[%clk 0:03:01]}  Nf6 {[%clk 0:02:59]} 4. e3 {[%clk 0:02:59]}  e6 {[%clk 0:02:59]} 5. b3 {[%clk 0:02:59]}  Nbd7 {[%clk 0:02:59]} 6. Bd3 {[%clk 0:02:58]}  Bd6 {[%clk 0:02:59]} 7. Bb2 {[%clk 0:02:57]}  Qe7 {[%clk 0:02:55]} 8. O-O {[%clk 0:02:42]}  e5 {[%clk 0:02:42]} 9. dxe5 {[%clk 0:01:49]}  Nxe5 {[%clk 0:02:41]} 10. cxd5 {[%clk 0:01:39]}  Nxd5 {[%clk 0:02:25]} 11. Nxe5 {[%clk 0:01:33]}  Bxe5 {[%clk 0:02:22]} 12. Bxe5 {[%clk 0:01:31]}  Qxe5 {[%clk 0:02:23]} 13. Nd2 {[%clk 0:01:31]}  O-O {[%clk 0:02:16]} 14. Nc4 {[%clk 0:01:29]}  Qg5 {[%clk 0:01:56]} 15. Qf3 {[%clk 0:01:21]}  Be6 {[%clk 0:01:47]} 16. Rac1 {[%clk 0:00:50]}  Rfd8 {[%clk 0:01:23]} 17. Bb1 {[%clk 0:00:50]}  b6 {[%clk 0:01:12]} 18. Qg3 {[%clk 0:00:42]}  Qxg3 {[%clk 0:01:05]} 19. hxg3 {[%clk 0:00:42]}  c5 {[%clk 0:00:59]} 20. Rfd1 {[%clk 0:00:37]}  Rac8 {[%clk 0:00:55]} 21. Kf1 {[%clk 0:00:33]}  h6 {[%clk 0:00:33]} 22. Ke1 {[%clk 0:00:32]}  Kf8 {[%clk 0:00:33]} 23. Rd2 {[%clk 0:00:29]}  Ke7 {[%clk 0:00:30]} 24. a3 {[%clk 0:00:26]}  Nf6 {[%clk 0:00:24]} 25. Rcd1 {[%clk 0:00:22]}  Rxd2 {[%clk 0:00:23]} 26. Rxd2 {[%clk 0:00:23]}  Bxc4 {[%clk 0:00:22]} 27. bxc4 {[%clk 0:00:23]}  Rd8 {[%clk 0:00:23]} 28. Rxd8 {[%clk 0:00:22]}  Kxd8 {[%clk 0:00:24]} 29. Kd2 {[%clk 0:00:22]}  Ke7 {[%clk 0:00:24]} 30. f3 {[%clk 0:00:21]}  Kd6 {[%clk 0:00:23]} 31. e4 {[%clk 0:00:19]}  Nd7 {[%clk 0:00:22]} 32. Bd3 {[%clk 0:00:18]}  Ke5 {[%clk 0:00:21]} 33. Ke3 {[%clk 0:00:18]}  Kd6 {[%clk 0:00:20]} 34. f4 {[%clk 0:00:18]}  Nb8 {[%clk 0:00:18]} 35. e5+ {[%clk 0:00:18]}  Ke6 {[%clk 0:00:16]} 36. Ke4 {[%clk 0:00:18]}  Nc6 {[%clk 0:00:16]} 37. f5+ {[%clk 0:00:17]}  Ke7 {[%clk 0:00:15]} 38. g4 {[%clk 0:00:17]}  Nd4 {[%clk 0:00:15]} 39. Kf4 {[%clk 0:00:15]}  a6 {[%clk 0:00:13]} 40. a4 {[%clk 0:00:15]}  a5 {[%clk 0:00:13]} 41. g5 {[%clk 0:00:14]}  hxg5+ {[%clk 0:00:13]} 42. Kxg5 {[%clk 0:00:15]}  Nc6 {[%clk 0:00:12]} 43. Kf4 {[%clk 0:00:13]}  f6 {[%clk 0:00:11]} 44. e6 {[%clk 0:00:11]}  Kd6 {[%clk 0:00:11]} 45. Be2 {[%clk 0:00:08]}  Nd4 {[%clk 0:00:08]} 46. Bd1 {[%clk 0:00:08]}  Nc6 {[%clk 0:00:07]} 47. g4 {[%clk 0:00:08]}  Ne5 {[%clk 0:00:07]} 48. Be2 {[%clk 0:00:09]}  Nc6 {[%clk 0:00:07]} 49. g5 {[%clk 0:00:09]}  Ne5 {[%clk 0:00:07]} 50. Bf1 {[%clk 0:00:07]}  Nc6 {[%clk 0:00:07]} 51. Be2 {[%clk 0:00:07]}  Nd4 {[%clk 0:00:07]} 52. Bd1 {[%clk 0:00:07]}  Nc6 {[%clk 0:00:07]} 53. Be2 {[%clk 0:00:07]} 1/2-1/2


[Site "https://www.chess.com"]

[Event "Titled Tuesday Blitz October 5 2021"]
[White "Viani Antonio Dcunha"]
[Black "Siva Mahadevan"]
[WhiteFideId "5027330"]
[BlackFideId "25043153"]
[WhiteElo "2366"]
[BlackElo "2203"]
[Result "0-1"]
[Round "08"]
[TimeControl "180+1"]
[Date "2021.10.05"]
[WhiteClock "0:00:06"]
[BlackClock "0:00:39"]

1. e4 {[%clk 0:03:00]}  e5 {[%clk 0:02:59]} 2. Nf3 {[%clk 0:03:00]}  Nc6 {[%clk 0:03:00]} 3. Bc4 {[%clk 0:03:00]}  Nf6 {[%clk 0:02:59]} 4. d3 {[%clk 0:03:00]}  h6 {[%clk 0:02:59]} 5. Nc3 {[%clk 0:02:55]}  d6 {[%clk 0:02:58]} 6. h3 {[%clk 0:02:48]}  g5 {[%clk 0:02:56]} 7. d4 {[%clk 0:02:44]}  Qe7 {[%clk 0:02:47]} 8. dxe5 {[%clk 0:02:38]}  dxe5 {[%clk 0:02:37]} 9. Be3 {[%clk 0:02:12]}  Bd7 {[%clk 0:02:32]} 10. Qe2 {[%clk 0:02:03]}  O-O-O {[%clk 0:02:32]} 11. O-O-O {[%clk 0:02:03]}  Bg7 {[%clk 0:02:32]} 12. Nd5 {[%clk 0:01:52]}  Nxd5 {[%clk 0:02:30]} 13. Bxd5 {[%clk 0:01:53]}  Kb8 {[%clk 0:02:23]} 14. Qb5 {[%clk 0:01:47]}  a6 {[%clk 0:02:16]} 15. Qb3 {[%clk 0:01:45]}  Rhf8 {[%clk 0:02:12]} 16. Rd2 {[%clk 0:01:43]}  Nb4 {[%clk 0:01:51]} 17. Bc4 {[%clk 0:01:07]}  b5 {[%clk 0:01:39]} 18. Bd5 {[%clk 0:01:01]}  c6 {[%clk 0:01:37]} 19. a3 {[%clk 0:00:53]}  cxd5 {[%clk 0:01:37]} 20. exd5 {[%clk 0:00:47]}  Nxd5 {[%clk 0:01:34]} 21. Rxd5 {[%clk 0:00:37]}  Be6 {[%clk 0:01:33]} 22. Rxd8+ {[%clk 0:00:36]}  Rxd8 {[%clk 0:01:34]} 23. Qc3 {[%clk 0:00:35]}  Rc8 {[%clk 0:01:32]} 24. Qa5 {[%clk 0:00:30]}  Qd6 {[%clk 0:01:32]} 25. Rd1 {[%clk 0:00:25]}  Qc6 {[%clk 0:01:32]} 26. Qb6+ {[%clk 0:00:22]}  Qxb6 {[%clk 0:01:30]} 27. Bxb6 {[%clk 0:00:23]}  Kb7 {[%clk 0:01:26]} 28. Ba5 {[%clk 0:00:23]}  f5 {[%clk 0:01:18]} 29. Bc3 {[%clk 0:00:20]}  g4 {[%clk 0:01:07]} 30. hxg4 {[%clk 0:00:19]}  fxg4 {[%clk 0:01:08]} 31. Nxe5 {[%clk 0:00:19]}  Rxc3 {[%clk 0:01:07]} 32. bxc3 {[%clk 0:00:18]}  Bxe5 {[%clk 0:01:07]} 33. Kb2 {[%clk 0:00:18]}  Bc4 {[%clk 0:01:05]} 34. Rd7+ {[%clk 0:00:17]}  Kc6 {[%clk 0:01:05]} 35. Ra7 {[%clk 0:00:17]}  Kb6 {[%clk 0:01:05]} 36. Rh7 {[%clk 0:00:17]}  Bf4 {[%clk 0:01:05]} 37. Rg7 {[%clk 0:00:17]}  Bg5 {[%clk 0:01:05]} 38. Rg6+ {[%clk 0:00:15]}  Kc5 {[%clk 0:01:06]} 39. Rxa6 {[%clk 0:00:14]}  Bd5 {[%clk 0:01:03]} 40. a4 {[%clk 0:00:14]}  Bxg2 {[%clk 0:01:01]} 41. Ra5 {[%clk 0:00:13]}  Bc6 {[%clk 0:01:00]} 42. axb5 {[%clk 0:00:12]}  Bxb5 {[%clk 0:00:59]} 43. Kb3 {[%clk 0:00:13]}  Kb6 {[%clk 0:00:59]} 44. Ra8 {[%clk 0:00:13]}  Bc6 {[%clk 0:00:58]} 45. Rb8+ {[%clk 0:00:13]}  Kc5 {[%clk 0:00:58]} 46. Rb4 {[%clk 0:00:12]}  Bd5+ {[%clk 0:00:57]} 47. Kb2 {[%clk 0:00:11]}  h5 {[%clk 0:00:57]} 48. Ra4 {[%clk 0:00:10]}  Bf6 {[%clk 0:00:53]} 49. Ka3 {[%clk 0:00:09]}  Be7 {[%clk 0:00:51]} 50. Kb2 {[%clk 0:00:09]}  Bd8 {[%clk 0:00:40]} 51. Ra5+ {[%clk 0:00:06]}  Bxa5 {[%clk 0:00:39]} 0-1


[Site "https://www.chess.com"]

[Event "Titled Tuesday Blitz October 5 2021"]
[White "Yaksin, Oleg"]
[Black "Sanchez, Robert"]
[WhiteFideId "24105880"]
[BlackFideId "2034360"]
[WhiteElo "2256"]
[BlackElo "2272"]
[Result "1-0"]
[Round "08"]
[TimeControl "180+1"]
[Date "2021.10.05"]
[WhiteClock "0:00:32"]
[BlackClock "0:00:03"]

1. d4 {[%clk 0:02:59]}  d5 {[%clk 0:02:59]} 2. c4 {[%clk 0:02:59]}  c6 {[%clk 0:03:00]} 3. Nf3 {[%clk 0:02:59]}  Nf6 {[%clk 0:02:58]} 4. Qb3 {[%clk 0:02:58]}  e6 {[%clk 0:02:46]} 5. g3 {[%clk 0:02:55]}  Be7 {[%clk 0:02:45]} 6. Bg2 {[%clk 0:02:55]}  O-O {[%clk 0:02:45]} 7. O-O {[%clk 0:02:55]}  Nbd7 {[%clk 0:02:46]} 8. Bg5 {[%clk 0:02:55]}  h6 {[%clk 0:02:45]} 9. Bxf6 {[%clk 0:02:54]}  Nxf6 {[%clk 0:02:46]} 10. Nc3 {[%clk 0:02:54]}  b6 {[%clk 0:02:46]} 11. Ne5 {[%clk 0:02:50]}  Bb7 {[%clk 0:02:43]} 12. Rfd1 {[%clk 0:02:49]}  Nd7 {[%clk 0:02:33]} 13. Nxd7 {[%clk 0:02:26]}  Qxd7 {[%clk 0:02:31]} 14. e4 {[%clk 0:02:27]}  dxc4 {[%clk 0:02:30]} 15. Qxc4 {[%clk 0:02:26]}  Rfc8 {[%clk 0:02:28]} 16. a4 {[%clk 0:02:26]}  Qe8 {[%clk 0:02:21]} 17. Rac1 {[%clk 0:02:25]}  a6 {[%clk 0:02:18]} 18. Qb3 {[%clk 0:02:17]}  Bd8 {[%clk 0:02:09]} 19. d5 {[%clk 0:02:05]}  c5 {[%clk 0:01:58]} 20. dxe6 {[%clk 0:02:01]}  fxe6 {[%clk 0:01:49]} 21. Qc4 {[%clk 0:02:01]}  Bf6 {[%clk 0:01:43]} 22. Bh3 {[%clk 0:01:46]}  Rc6 {[%clk 0:01:31]} 23. b3 {[%clk 0:01:13]}  Bd4 {[%clk 0:01:15]} 24. Ne2 {[%clk 0:01:12]}  Bb2 {[%clk 0:01:03]} 25. Rc2 {[%clk 0:01:11]}  Bf6 {[%clk 0:01:01]} 26. Nf4 {[%clk 0:01:10]}  Bc8 {[%clk 0:00:52]} 27. b4 {[%clk 0:00:57]}  Kh7 {[%clk 0:00:28]} 28. b5 {[%clk 0:00:57]}  axb5 {[%clk 0:00:24]} 29. axb5 {[%clk 0:00:58]}  Rc7 {[%clk 0:00:24]} 30. Bxe6 {[%clk 0:00:48]}  g5 {[%clk 0:00:15]} 31. Bxc8 {[%clk 0:00:43]}  gxf4 {[%clk 0:00:13]} 32. Bf5+ {[%clk 0:00:42]}  Kh8 {[%clk 0:00:13]} 33. Rd6 {[%clk 0:00:37]}  f3 {[%clk 0:00:10]} 34. Rxf6 {[%clk 0:00:32]}  Ra1+ {[%clk 0:00:05]} 35. Rc1 {[%clk 0:00:33]}  Qe5 {[%clk 0:00:03]} 36. Rxh6+ {[%clk 0:00:32]} 1-0


[Site "https://www.chess.com"]

[Event "Titled Tuesday Blitz October 5 2021"]
[White "ketster"]
[Black "Gaehwiler, Gabriel"]
[BlackFideId "1314530"]
[WhiteElo "2553"]
[BlackElo "2320"]
[Result "0-1"]
[Round "08"]
[TimeControl "180+1"]
[Date "2021.10.05"]
[WhiteClock "0:00:03"]
[BlackClock "0:00:10"]

1. d4 {[%clk 0:03:00]}  Nf6 {[%clk 0:02:59]} 2. c4 {[%clk 0:02:59]}  g6 {[%clk 0:03:00]} 3. Nc3 {[%clk 0:02:57]}  Bg7 {[%clk 0:03:00]} 4. e4 {[%clk 0:02:57]}  O-O {[%clk 0:03:01]} 5. Nge2 {[%clk 0:02:58]}  d6 {[%clk 0:03:01]} 6. Ng3 {[%clk 0:02:58]}  e5 {[%clk 0:03:02]} 7. d5 {[%clk 0:02:58]}  Na6 {[%clk 0:03:02]} 8. h4 {[%clk 0:02:59]}  h6 {[%clk 0:02:45]} 9. Be2 {[%clk 0:02:57]}  c6 {[%clk 0:02:41]} 10. Be3 {[%clk 0:02:53]}  Kh7 {[%clk 0:02:40]} 11. h5 {[%clk 0:02:52]}  g5 {[%clk 0:02:40]} 12. f3 {[%clk 0:02:42]}  Qe7 {[%clk 0:02:38]} 13. Nf1 {[%clk 0:02:40]}  cxd5 {[%clk 0:02:30]} 14. cxd5 {[%clk 0:02:39]}  Bd7 {[%clk 0:02:30]} 15. g4 {[%clk 0:02:33]}  Rfc8 {[%clk 0:02:29]} 16. Ng3 {[%clk 0:02:32]}  Qd8 {[%clk 0:02:25]} 17. O-O {[%clk 0:02:27]}  Nc5 {[%clk 0:02:22]} 18. b4 {[%clk 0:02:19]}  Na6 {[%clk 0:02:17]} 19. Qb3 {[%clk 0:02:17]}  Nc7 {[%clk 0:02:14]} 20. a4 {[%clk 0:02:11]}  Nce8 {[%clk 0:01:47]} 21. Rfc1 {[%clk 0:02:06]}  Qe7 {[%clk 0:01:43]} 22. Nb5 {[%clk 0:02:00]}  a6 {[%clk 0:01:42]} 23. Na3 {[%clk 0:01:56]}  Bf8 {[%clk 0:01:33]} 24. Nc4 {[%clk 0:01:50]}  Rc7 {[%clk 0:01:17]} 25. Nb6 {[%clk 0:01:44]}  Rd8 {[%clk 0:01:17]} 26. Rxc7 {[%clk 0:01:33]}  Nxc7 {[%clk 0:01:18]} 27. Rc1 {[%clk 0:01:33]}  Nfe8 {[%clk 0:01:16]} 28. Nxd7 {[%clk 0:01:18]}  Qxd7 {[%clk 0:01:16]} 29. Bb6 {[%clk 0:01:18]}  Rc8 {[%clk 0:01:14]} 30. Qc2 {[%clk 0:01:07]}  Ra8 {[%clk 0:01:00]} 31. Nf5 {[%clk 0:01:02]}  Kg8 {[%clk 0:00:50]} 32. Kg2 {[%clk 0:00:53]}  Kh7 {[%clk 0:00:49]} 33. Qb3 {[%clk 0:00:42]}  Rc8 {[%clk 0:00:45]} 34. Qc2 {[%clk 0:00:27]}  Ra8 {[%clk 0:00:45]} 35. Be3 {[%clk 0:00:18]}  Kg8 {[%clk 0:00:42]} 36. Qb3 {[%clk 0:00:18]}  Rc8 {[%clk 0:00:42]} 37. b5 {[%clk 0:00:18]}  axb5 {[%clk 0:00:41]} 38. axb5 {[%clk 0:00:18]}  Ra8 {[%clk 0:00:25]} 39. b6 {[%clk 0:00:18]}  Na6 {[%clk 0:00:25]} 40. Bb5 {[%clk 0:00:18]}  Qd8 {[%clk 0:00:24]} 41. Rc2 {[%clk 0:00:15]}  Nc5 {[%clk 0:00:21]} 42. Bxc5 {[%clk 0:00:09]}  dxc5 {[%clk 0:00:22]} 43. Bxe8 {[%clk 0:00:09]}  Qxe8 {[%clk 0:00:22]} 44. d6 {[%clk 0:00:09]}  Qc6 {[%clk 0:00:19]} 45. Qd5 {[%clk 0:00:08]}  Qxd5 {[%clk 0:00:17]} 46. exd5 {[%clk 0:00:08]}  Rd8 {[%clk 0:00:17]} 47. Rxc5 {[%clk 0:00:07]}  Bxd6 {[%clk 0:00:18]} 48. Rc7 {[%clk 0:00:07]}  Bf8 {[%clk 0:00:14]} 49. Rxb7 {[%clk 0:00:07]}  Rxd5 {[%clk 0:00:14]} 50. Rb8 {[%clk 0:00:07]}  Rd2+ {[%clk 0:00:14]} 51. Kg3 {[%clk 0:00:07]}  f6 {[%clk 0:00:13]} 52. b7 {[%clk 0:00:06]}  Rb2 {[%clk 0:00:13]} 53. Kh3 {[%clk 0:00:02]}  Kf7 {[%clk 0:00:13]} 54. Ng3 {[%clk 0:00:03]}  Bd6 {[%clk 0:00:11]} 55. Rh8 {[%clk 0:00:02]}  Ke6 {[%clk 0:00:10]} 56. Rxh6 {[%clk 0:00:02]}  Rxb7 {[%clk 0:00:10]} 57. Rh7 {[%clk 0:00:03]}  Rb3 {[%clk 0:00:10]} 58. Kg2 {[%clk 0:00:02]}  Rb2+ {[%clk 0:00:11]} 59. Kh3 {[%clk 0:00:03]}  Rf2 {[%clk 0:00:11]} 60. h6 {[%clk 0:00:03]}  e4 {[%clk 0:00:10]} 61. Nxe4 {[%clk 0:00:03]}  Rh2# {[%clk 0:00:10]} 0-1


[Site "https://www.chess.com"]